bitfinex/quotes_BTCUSD_20241002
["timestamp","ask_amount","ask_price","bid_price","bid_amount"]
[1727855191400,0.49245834,61991.0,61990.0,0.00164]
[1727855191614,0.50045834,61991.0,61990.0,0.00264]
[1727855191826,0.52574743,61991.0,61990.0,0.00264]
[1727855192749,0.62230121,61991.0,61990.0,0.00264]
[1727855193386,0.52574743,61991.0,61990.0,0.00264]
[1727855193599,0.53374743,61991.0,61990.0,0.00364]
[1727855194489,0.6543901,61991.0,61990.0,0.00364]
[1727855196063,0.04128909,61991.0,61990.0,0.00364]
[1727855196283,0.08957978,61991.0,61990.0,0.00364]
[1727855196508,0.17033909,61991.0,61990.0,0.01218632]
[1727855196723,0.17033909,61991.0,61990.0,0.00364]
[1727855196933,0.17033909,61991.0,61990.0,0.01218632]
[1727855197170,0.17033909,61991.0,61990.0,0.00364]
[1727855197618,0.55847844,61991.0,61990.0,0.00364]
[1727855197844,0.77631405,61991.0,61990.0,0.00364]
[1727855198295,0.90297188,61991.0,61990.0,0.00364]
[1727855198731,1.18097377,61991.0,61990.0,0.00364]
[1727855198967,1.18049623,61991.0,61990.0,0.00364]
[1727855199806,1.10600963,61991.0,61990.0,0.00364]
[1727855200242,0.97293925,61991.0,61990.0,0.00364]
[1727855200456,1.25096775,61991.0,61990.0,0.00364]
[1727855201100,1.27625807,61991.0,61990.0,0.00364]
[1727855201526,1.13144098,61991.0,61990.0,0.00364]
[1727855201739,1.2963228,61991.0,61990.0,0.00364]
[1727855202233,1.13144098,61991.0,61990.0,0.00364]
[1727855202455,0.67856965,61991.0,61990.0,0.00364]
[1727855202666,0.53362655,61991.0,61990.0,0.00364]
[1727855203331,0.6543904,61991.0,61990.0,0.00364]
[1727855203549,0.53401105,61991.0,61990.0,0.00364]
[1727855205671,0.68309814,61991.0,61990.0,0.00364]
[1727855209981,0.53401105,61991.0,61990.0,0.00364]
[1727855210612,0.3693166,61991.0,61990.0,0.00364]
[1727855210832,0.2402666,61991.0,61990.0,0.00364]
[1727855211087,0.17034032,61991.0,61990.0,0.00364]
[1727855211941,0.04129032,61991.0,61990.0,0.00364]
[1727855212164,0.04129032,61991.0,61990.0,0.132693]
[1727855212165,0.016,61991.0,61990.0,0.132693]
[1727855212610,0.008,61991.0,61990.0,0.131693]
[1727855212823,0.129045,61994.0,61990.0,0.130693]
[1727855213023,0.008,61991.0,61990.0,0.00264]
[1727855213230,0.016,61991.0,61990.0,0.132693]
[1727855213436,0.016,61991.0,61990.0,0.131693]
[1727855213648,0.008,61991.0,61990.0,0.131693]
[1727855213854,0.009,61991.0,61990.0,0.131693]
[1727855214494,0.001,61991.0,61990.0,0.130693]
[1727855214931,0.002,61991.0,61990.0,0.130693]
[1727855215785,0.001,61991.0,61990.0,0.130693]
[1727855216649,0.1773471,61995.0,61990.0,0.130693]
[1727855216866,0.129044,61995.0,61990.0,0.130693]
[1727855217031,0.129044,61995.0,61991.0,0.12905]
[1727855217193,0.02528485,61994.0,61992.0,0.129048]
[1727855217397,0.02528485,61994.0,61991.0,0.12905]
[1727855218340,0.15432985,61994.0,61991.0,0.12905]
[1727855219624,0.15732985,61994.0,61990.0,0.130692]
[1727855219841,0.129049,61992.0,61990.0,0.00164]
[1727855220053,0.15732985,61994.0,61990.0,0.130692]
[1727855220258,0.16032985,61994.0,61990.0,0.130692]
[1727855220474,0.15732985,61994.0,61990.0,0.130692]
[1727855220681,0.15432985,61994.0,61990.0,0.130692]
[1727855220965,0.02828485,61994.0,61990.0,0.130692]
[1727855221162,0.41542185,61994.0,61990.0,0.130692]
[1727855221406,0.129047,61993.0,61990.0,0.130692]
[1727855221612,0.129047,61993.0,61990.0,0.00164]
[1727855222223,0.02828485,61994.0,61990.0,0.130692]
[1727855222421,0.129047,61993.0,61990.0,0.00164]
[1727855222572,0.260094,61993.0,61990.0,0.00164]
[1727855222790,0.129048,61992.0,61990.0,0.00164]
[1727855222992,0.12905,61991.0,61990.0,0.00164]
[1727855223222,0.02528485,61994.0,61990.0,0.00164]
[1727855223393,0.02528485,61994.0,61993.0,0.0808]
[1727855223768,0.03128485,61994.0,61993.0,0.209846]
[1727855224656,0.03128485,61994.0,61993.0,0.35893309]
[1727855225080,0.02528485,61994.0,61993.0,0.35893309]
[1727855225322,0.00082,61997.0,61996.0,0.12904]
[1727855225779,0.00082,61997.0,61995.0,0.129042]
[1727855226627,0.00182,61997.0,61995.0,0.129042]
[1727855227901,0.00182,61997.0,61994.0,0.129044]
[1727855228533,0.00282,61997.0,61994.0,0.129044]
[1727855228740,0.00082,61997.0,61994.0,0.129044]
[1727855228951,0.00182,61997.0,61994.0,0.129044]
[1727855229162,0.00282,61997.0,61994.0,0.129044]
[1727855229388,0.00182,61997.0,61995.0,0.129042]
[1727855229610,0.00282,61997.0,61996.0,0.12904]
[1727855230249,0.00182,61997.0,61996.0,0.12904]
[1727855230515,0.00082,61997.0,61996.0,0.12904]
[1727855232136,0.00182,61997.0,61996.0,0.12904]
[1727855232355,0.00082,61997.0,61996.0,0.12904]
[1727855232574,0.00182,61997.0,61996.0,0.12904]
[1727855233083,0.00082,61997.0,61996.0,0.40076037]
[1727855233315,0.00082,61997.0,61996.0,0.59573445]
[1727855233745,0.00082,61997.0,61996.0,0.59373445]
[1727855233959,0.00082,61997.0,61996.0,0.60046072]
[1727855234172,0.00182,61997.0,61996.0,0.60046072]
[1727855235093,0.00182,61997.0,61996.0,0.59846072]
[1727855235522,0.00182,61997.0,61996.0,0.60846072]
[1727855235734,0.00182,61997.0,61996.0,0.61746072]
[1727855235735,0.00282,61997.0,61996.0,0.61746072]
[1727855236183,0.00282,61997.0,61996.0,0.61946072]
[1727855236856,0.00282,61997.0,61996.0,0.61746072]
[1727855237921,0.00282,61997.0,61996.0,0.61946072]
[1727855238416,0.24296023,62010.0,62009.0,0.152013]
[1727855238982,0.128999,62016.0,62012.0,0.129005]
[1727855239202,0.128999,62016.0,62013.0,0.129004]
[1727855240241,0.138999,62016.0,62013.0,0.129004]
[1727855240453,0.01,62016.0,62013.0,0.130004]
[1727855240878,0.017,62016.0,62013.0,0.131004]
[1727855241110,0.017,62016.0,62013.0,0.002]
[1727855241308,0.017,62016.0,62015.0,0.152001]
[1727855241736,0.007,62016.0,62015.0,0.152001]
[1727855241966,0.014,62016.0,62015.0,0.49512015]
[1727855242211,0.007,62016.0,62015.0,0.49189545]
[1727855242442,0.00082,62018.0,62017.0,0.128996]
[1727855242663,0.00082,62018.0,62017.0,0.30108309]
[1727855242869,0.00082,62018.0,62017.0,0.151996]
[1727855243547,0.00182,62018.0,62017.0,0.31130767]
[1727855243776,0.00282,62018.0,62017.0,0.31930767]
[1727855243990,0.00282,62018.0,62017.0,0.31608309]
[1727855244201,0.00182,62018.0,62017.0,0.30808309]
[1727855244428,0.00182,62018.0,62017.0,0.3113075]
[1727855244657,0.00182,62018.0,62017.0,0.71896218]
[1727855244874,0.00082,62018.0,62017.0,0.46577754]
[1727855245099,0.00082,62018.0,62017.0,0.64727754]
[1727855245742,0.00082,62018.0,62017.0,0.64627754]
[1727855245951,0.00182,62018.0,62017.0,0.65327754]
[1727855246161,0.00182,62018.0,62017.0,0.65427754]
[1727855246394,0.00182,62018.0,62017.0,0.65327754]
[1727855246823,0.00282,62018.0,62017.0,0.66127754]
[1727855247041,0.00282,62018.0,62017.0,0.49658309]
[1727855247254,0.00282,62018.0,62017.0,0.224496]
[1727855248588,0.00282,62018.0,62017.0,0.143996]
[1727855248756,0.00282,62018.0,62017.0,0.015]
[1727855250972,0.00282,62018.0,62017.0,0.143996]
[1727855251845,0.00282,62018.0,62017.0,0.015]
[1727855253696,0.00282,62018.0,62017.0,0.143996]
[1727855256377,0.00282,62018.0,62017.0,0.166996]
[1727855257055,0.00282,62018.0,62017.0,0.038]
[1727855257294,0.00282,62018.0,62017.0,0.166996]
[1727855257771,0.00282,62018.0,62017.0,0.015]
[1727855257993,0.131814,62018.0,62017.0,0.015]
[1727855261929,0.00282,62018.0,62017.0,0.015]
[1727855262173,0.00282,62018.0,62017.0,0.221996]
[1727855263501,0.00282,62018.0,62017.0,0.244996]
[1727855266753,0.00282,62018.0,62017.0,0.246634]
[1727855267848,0.00282,62018.0,62017.0,0.039638]
[1727855268072,0.131814,62018.0,62017.0,0.016638]
[1727855269055,0.00282,62018.0,62017.0,0.016638]
[1727855269278,0.00282,62018.0,62017.0,0.145634]
[1727855269511,0.00282,62018.0,62017.0,0.17185869]
[1727855269728,0.00282,62018.0,62017.0,0.25445848]
[1727855270852,0.00282,62018.0,62017.0,0.50965293]
[1727855271070,0.00282,62018.0,62017.0,0.50842845]
[1727855271548,0.00282,62018.0,62017.0,0.50642845]
[1727855273586,0.00282,62018.0,62017.0,0.60642845]
[1727855275930,0.00282,62018.0,62017.0,0.60842845]
[1727855276670,0.00182,62018.0,62017.0,0.60042845]
[1727855276876,0.00182,62018.0,62017.0,0.61142845]
[1727855276877,0.00282,62018.0,62017.0,0.61142845]
[1727855277496,0.00182,62018.0,62017.0,0.60442845]
[1727855277911,0.00282,62018.0,62017.0,0.61442845]
[1727855279887,0.00282,62018.0,62017.0,0.64677845]
[1727855280336,0.00082,62024.0,62023.0,0.459434]
[1727855280582,0.00082,62024.0,62023.0,0.62412845]
[1727855281239,0.00082,62024.0,62023.0,0.68166889]
[1727855281661,0.00082,62024.0,62023.0,0.63812845]
[1727855281890,0.00182,62024.0,62023.0,0.65212845]
[1727855282667,0.00182,62024.0,62023.0,0.65712845]
[1727855283891,0.00082,62024.0,62023.0,0.64312845]
[1727855284338,0.00082,62024.0,62023.0,0.65212845]
[1727855284555,0.00082,62024.0,62023.0,0.65712845]
[1727855284772,0.00082,62024.0,62023.0,0.257934]
[1727855285000,0.00082,62024.0,62023.0,0.189334]
[1727855286107,0.128972,62029.0,62025.0,0.1]
[1727855286516,0.128972,62029.0,62025.0,0.22898]
[1727855286728,0.128976,62027.0,62025.0,0.1]
[1727855287197,0.128973,62029.0,62024.0,0.228981]
[1727855287413,0.257943,62030.0,62026.0,0.023]
[1727855287616,0.128975,62028.0,62026.0,0.023]
[1727855287827,0.128975,62028.0,62024.0,0.22898]
[1727855287828,0.128976,62027.0,62025.0,0.035]
[1727855288025,0.128976,62027.0,62025.0,0.049]
[1727855288282,0.257935,62031.0,62025.0,0.035]
[1727855288483,0.128972,62029.0,62026.0,0.011]
[1727855288679,0.257935,62031.0,62026.0,0.047]
[1727855288680,0.128976,62027.0,62026.0,0.047]
[1727855289167,0.128976,62027.0,62026.0,0.024]
[1727855289819,0.128976,62027.0,62026.0,0.013]
[1727855290037,0.257953,62027.0,62022.0,0.023]
[1727855290264,0.128978,62026.0,62025.0,0.024]
[1727855290497,0.128978,62026.0,62025.0,0.01]
[1727855290775,0.128978,62026.0,62023.0,0.00164]
[1727855291000,0.128978,62026.0,62023.0,0.130624]
[1727855291219,0.128978,62026.0,62023.0,0.00164]
[1727855291443,0.128978,62026.0,62025.0,0.008]
[1727855292774,0.00082,62027.0,62025.0,0.008]
[1727855293707,0.00082,62027.0,62026.0,0.128978]
[1727855293925,0.00082,62027.0,62025.0,0.007]
[1727855294132,0.00082,62027.0,62025.0,0.014]
[1727855294346,0.00082,62027.0,62025.0,0.142979]
[1727855294623,0.00082,62027.0,62025.0,0.135979]
[1727855294819,0.00082,62027.0,62025.0,0.007]
[1727855295019,0.129796,62027.0,62026.0,0.007]
[1727855295447,0.209796,62027.0,62026.0,0.007]
[1727855295614,0.32317592,62027.0,62026.0,0.007]
[1727855295789,0.302596,62027.0,62026.0,0.007]
[1727855296245,0.128982,62024.0,62023.0,0.00164]
[1727855298310,0.3403243,62024.0,62023.0,0.00164]
[1727855298738,0.128982,62024.0,62023.0,0.00164]
[1727855299521,0.131982,62024.0,62023.0,0.00164]
[1727855303330,0.25282183,62024.0,62023.0,0.00164]
[1727855303540,0.46411427,62024.0,62023.0,0.00164]
[1727855306517,0.65705598,62024.0,62023.0,0.00164]
[1727855306732,0.65705598,62024.0,62017.0,0.001638]
[1727855306733,0.27808109,62018.0,62017.0,0.001638]
[1727855306948,0.58217353,62018.0,62017.0,0.001638]
[1727855307214,0.74686798,62018.0,62017.0,0.001638]
[1727855307421,0.82686798,62018.0,62017.0,0.001638]
[1727855307641,1.12122362,62018.0,62017.0,0.001638]
[1727855308059,1.11959666,62018.0,62017.0,0.001638]
[1727855309311,1.11959666,62018.0,62017.0,0.002638]
[1727855309538,0.97048333,62018.0,62017.0,0.002638]
[1727855309797,0.97048333,62018.0,62017.0,0.001638]
[1727855310013,1.00176192,62018.0,62017.0,0.002638]
[1727855310453,0.85886293,62018.0,62017.0,0.003638]
[1727855311780,0.37228139,62018.0,62017.0,0.003638]
[1727855312206,0.53697584,62018.0,62017.0,0.003638]
[1727855312678,0.51169725,62018.0,62017.0,0.003638]
[1727855314440,0.76038434,62018.0,62017.0,0.003638]
[1727855314861,0.83858434,62018.0,62017.0,0.003638]
[1727855315342,0.93858434,62018.0,62017.0,0.003638]
[1727855315558,0.93658434,62018.0,62017.0,0.003638]
[1727855316908,0.96186469,62018.0,62017.0,0.003638]
[1727855317121,0.129019,62006.0,62005.0,0.24296023]
[1727855317334,0.17725972,62006.0,62005.0,0.24296023]
[1727855317814,0.129034,61999.0,61998.0,0.24296023]
[1727855318237,0.129037,61998.0,61996.0,0.00164]
[1727855319352,0.258065,62000.0,61996.0,0.00164]
[1727855319353,0.129038,61997.0,61996.0,0.00164]
[1727855319571,0.129038,61997.0,61996.0,0.01264]
[1727855320265,0.129033,62000.0,61996.0,0.00164]
[1727855320524,0.001,61998.0,61997.0,0.212338]
[1727855320735,0.001,61998.0,61997.0,0.36142509]
[1727855321175,0.001,61998.0,61997.0,0.212338]
[1727855321604,0.29120095,62009.0,61997.0,0.23238709]
[1727855321829,0.129024,62004.0,62000.0,0.129031]
[1727855322075,0.129022,62005.0,62001.0,0.129029]
[1727855322317,0.258044,62005.0,61999.0,0.129033]
[1727855322535,0.129029,62002.0,61998.0,0.129036]
[1727855323404,0.129029,62002.0,61997.0,0.0833]
[1727855323405,0.129033,62000.0,61997.0,0.0833]
[1727855324023,0.260059,62002.0,61997.0,0.0833]
[1727855324024,0.129036,61998.0,61997.0,0.0833]
[1727855324237,0.129034,62000.0,61997.0,0.0833]
[1727855324663,0.129035,61999.0,61997.0,0.0833]
[1727855324866,0.002,62002.0,61997.0,0.0833]
[1727855324867,0.001,62000.0,61997.0,0.212337]
[1727855325071,0.001,62000.0,61997.0,0.0833]
[1727855325290,0.001,62000.0,61998.0,0.129036]
[1727855325521,0.001,62000.0,61999.0,0.129034]
[1727855325755,0.04824072,62017.0,62001.0,0.0787]
[1727855325972,0.04824072,62017.0,61999.0,0.43678154]
[1727855325973,0.17723372,62019.0,62015.0,0.0787]
[1727855326193,0.24296023,62020.0,62015.0,0.0787]
[1727855326194,0.50094223,62020.0,62015.0,0.0787]
[1727855326410,0.257982,62020.0,62015.0,0.0787]
[1727855326626,0.257989,62018.0,62010.0,0.1787]
[1727855326848,0.128999,62016.0,62012.0,0.1]
[1727855327061,0.128998,62017.0,62012.0,0.1]
[1727855327276,0.128998,62017.0,62012.0,0.229006]
[1727855327489,0.0252743,62019.0,62013.0,0.129004]
[1727855327707,0.128995,62018.0,62013.0,0.129004]
[1727855327910,0.0252743,62019.0,62012.0,0.1]
[1727855328122,0.128997,62017.0,62011.0,0.1]
[1727855328359,0.128997,62017.0,62012.0,0.129006]
[1727855328583,0.128997,62017.0,62012.0,0.130006]
[1727855328790,0.129005,62013.0,62012.0,0.001]
[1727855329216,0.129005,62013.0,62012.0,0.004]
[1727855329859,0.129005,62013.0,62005.0,0.336743]
[1727855330072,0.134005,62013.0,62008.0,0.129015]
[1727855330979,0.135005,62013.0,62012.0,0.001]
[1727855331183,0.129008,62012.0,62008.0,0.129015]
[1727855331852,0.129011,62011.0,62006.0,0.129017]
[1727855332068,0.007,62013.0,62006.0,0.258036]
[1727855332273,0.129009,62012.0,62008.0,0.129015]
[1727855332689,0.133009,62012.0,62008.0,0.129015]
[1727855333161,0.004,62012.0,62006.0,0.129018]
[1727855333378,0.004,62012.0,62005.0,0.0787]
[1727855333379,0.129013,62010.0,62005.0,0.20772]
[1727855333595,0.129013,62010.0,62006.0,0.129019]
[1727855333802,0.006,62012.0,61999.0,0.336767]
[1727855334034,0.129023,62005.0,62002.0,0.24296023]
[1727855334245,0.258029,62009.0,62004.0,0.129022]
[1727855334450,0.129016,62008.0,62004.0,0.129022]
[1727855334656,0.129016,62008.0,61999.0,0.336767]
[1727855334657,0.129016,62008.0,62000.0,0.24296023]
[1727855334858,0.129016,62008.0,62001.0,0.129029]
[1727855335492,0.129018,62007.0,62001.0,0.129029]
[1727855335699,0.04824072,62011.0,61999.0,0.0787]
[1727855335903,0.129026,62003.0,61999.0,0.0787]
[1727855336119,0.258033,62008.0,61999.0,0.0787]
[1727855336330,0.129032,62000.0,61999.0,0.0787]
[1727855337447,0.258053,62003.0,61999.0,0.0837]
[1727855337648,0.258053,62003.0,61999.0,0.0787]
[1727855337853,0.129032,62000.0,61999.0,0.0867]
[1727855338279,0.129032,62000.0,61999.0,0.0787]
[1727855338501,0.129034,61999.0,61996.0,0.00164]
[1727855340049,0.129034,61999.0,61998.0,0.00964]
[1727855340277,0.22427877,61999.0,61998.0,0.00964]
[1727855340496,0.27251949,61999.0,61998.0,0.00964]
[1727855340999,0.29663985,61999.0,61998.0,0.00964]
[1727855341219,0.29663985,61999.0,61998.0,0.01764]
[1727855341220,0.43402349,61999.0,61998.0,0.01764]
[1727855341442,0.55462529,61999.0,61998.0,0.00964]
[1727855341657,0.55362529,61999.0,61998.0,0.00164]
[1727855341871,0.55662529,61999.0,61998.0,0.00164]
[1727855342562,0.34077872,61999.0,61998.0,0.00164]
[1727855342797,0.34377872,61999.0,61998.0,0.00164]
[1727855344560,0.44035744,61999.0,61998.0,0.00164]
[1727855345640,0.44035474,61999.0,61998.0,0.00164]
[1727855347442,0.34377872,61999.0,61998.0,0.00164]
[1727855347660,0.44035621,61999.0,61998.0,0.00164]
[1727855348099,0.44014122,61999.0,61998.0,0.00164]
[1727855348752,0.57364483,61999.0,61998.0,0.00164]
[1727855348977,0.26853761,61999.0,61998.0,0.00164]
[1727855351794,0.47712657,61999.0,61998.0,0.00164]
[1727855352039,0.59790144,61999.0,61998.0,0.00164]
[1727855352509,0.47712657,61999.0,61998.0,0.00164]
[1727855352762,0.34362296,61999.0,61998.0,0.00164]
[1727855352976,0.34362296,61999.0,61998.0,0.08034]
[1727855352977,0.46441144,61999.0,61998.0,0.08034]
[1727855353179,0.006,61999.0,61998.0,0.08034]
[1727855353403,0.05431122,61999.0,61998.0,0.209376]
[1727855353621,0.006,61999.0,61998.0,0.300876]
[1727855354064,0.00082,62000.0,61998.0,0.17184]
[1727855354247,0.00082,62000.0,61999.0,0.129034]
[1727855356259,0.00082,62000.0,61999.0,0.39885404]
[1727855356472,0.00082,62000.0,61999.0,0.39562845]
[1727855356675,0.00082,62000.0,61999.0,0.39762845]
[1727855357118,0.00082,62000.0,61999.0,0.39562845]
[1727855357344,0.00082,62000.0,61999.0,0.49662845]
[1727855357565,0.00082,62000.0,61999.0,0.59382845]
[1727855357789,0.00082,62000.0,61999.0,0.59282845]
[1727855358220,0.00082,62000.0,61999.0,0.59782845]
[1727855364768,0.00082,62000.0,61999.0,0.59946845]
[1727855366711,0.00082,62000.0,61999.0,0.30574]
[1727855366962,0.00082,62000.0,61999.0,0.01164]
[1727855366963,0.129852,62000.0,61999.0,0.01164]
[1727855367450,0.43510585,62000.0,61999.0,0.00664]
[1727855367706,0.43510585,62000.0,61996.0,0.00164]
[1727855367707,0.129038,61997.0,61996.0,0.00164]
[1727855368134,0.43390149,61997.0,61996.0,0.00164]
[1727855368584,0.129038,61997.0,61996.0,0.00164]
[1727855369457,0.20147157,61997.0,61996.0,0.00164]
[1727855369671,0.20947157,61997.0,61996.0,0.00264]
[1727855370321,0.20347157,61997.0,61996.0,0.00264]
[1727855370527,0.20347157,61997.0,61996.0,0.00364]
[1727855370528,0.21147157,61997.0,61996.0,0.00364]
[1727855371917,0.26133577,61997.0,61996.0,0.00364]
[1727855372132,0.34724507,61997.0,61996.0,0.00364]
[1727855372361,0.4679677,61997.0,61996.0,0.00364]
[1727855372578,0.51193952,61997.0,61996.0,0.00364]
[1727855372794,0.50393952,61997.0,61996.0,0.00264]
[1727855373013,0.58693952,61997.0,61996.0,0.00364]
[1727855373222,0.58693952,61997.0,61996.0,0.00264]
[1727855373223,0.58493952,61997.0,61996.0,0.00264]
[1727855373636,0.58693952,61997.0,61996.0,0.00364]
[1727855375166,0.58638623,61997.0,61996.0,0.00364]
[1727855376441,0.75126805,61997.0,61996.0,0.00364]
[1727855376733,0.27813709,61991.0,61979.0,0.24296023]
[1727855377006,0.61593154,61991.0,61979.0,0.24296023]
[1727855377496,0.82158532,61991.0,61979.0,0.24296023]
[1727855377743,1.11169973,61991.0,61979.0,0.24296023]
[1727855378007,0.82158532,61991.0,61979.0,0.24296023]
[1727855378509,0.82158532,61991.0,61990.0,0.00264]
[1727855378510,0.82358532,61991.0,61990.0,0.00264]
[1727855378761,0.82558532,61991.0,61990.0,0.00264]
[1727855378998,0.96578573,61991.0,61990.0,0.00264]
[1727855379223,0.96578573,61991.0,61979.0,0.24296023]
[1727855379224,0.44926009,61980.0,61979.0,0.24296023]
[1727855379451,0.12908,61977.0,61974.0,0.00164]
[1727855379698,0.62202522,61977.0,61974.0,0.00164]
[1727855380201,0.50142823,61977.0,61974.0,0.00164]
[1727855380651,0.62197002,61977.0,61974.0,0.00164]
[1727855381115,0.62197108,61977.0,61974.0,0.00164]
[1727855381336,0.62197251,61977.0,61974.0,0.00164]
[1727855381577,0.3790725,61977.0,61974.0,0.00164]
[1727855381818,0.30677445,61977.0,61974.0,0.00164]
[1727855382467,0.35495617,61977.0,61974.0,0.00164]
[1727855382684,0.22587617,61977.0,61971.0,0.24296023]
[1727855382907,0.12909,61972.0,61971.0,0.24296023]
[1727855383151,0.29378445,61972.0,61971.0,0.24296023]
[1727855383392,0.129094,61970.0,61963.0,0.001638]
[1727855384725,0.134094,61970.0,61963.0,0.001638]
[1727855387195,0.29878845,61970.0,61963.0,0.001638]
[1727855387438,0.30478845,61970.0,61963.0,0.001638]
[1727855388695,0.43015949,61970.0,61963.0,0.001638]
[1727855388970,0.60305949,61970.0,61963.0,0.001638]
[1727855389224,0.27819409,61964.0,61963.0,0.001638]
[1727855389432,0.44288854,61964.0,61963.0,0.001638]
[1727855389900,0.56964935,61964.0,61963.0,0.001638]
[1727855390358,0.7418264,61964.0,61963.0,0.001638]
[1727855390571,0.71973292,61964.0,61963.0,0.001638]
[1727855390806,0.71773292,61964.0,61963.0,0.001638]
[1727855391026,0.129117,61959.0,61958.0,0.03875696]
[1727855391282,0.59098103,61959.0,61958.0,0.03875696]
[1727855391494,0.54289854,61959.0,61958.0,0.03875696]
[1727855392133,0.58220197,61959.0,61958.0,0.03875696]
[1727855393202,0.55689854,61959.0,61958.0,0.03875696]
[1727855393482,0.55689854,61959.0,61958.0,0.03975696]
[1727855393672,0.57089854,61959.0,61958.0,0.03975696]
[1727855393914,0.55689854,61959.0,61958.0,0.03875696]
[1727855394121,0.62556562,61959.0,61958.0,0.03975696]
[1727855394332,0.63956562,61959.0,61958.0,0.03975696]
[1727855395820,0.64156562,61959.0,61958.0,0.03975696]
[1727855396038,0.64156562,61959.0,61958.0,0.0012424]
[1727855396243,0.66486901,61959.0,61958.0,0.0012424]
[1727855396518,0.66686901,61959.0,61958.0,0.0012424]
[1727855397584,0.59620193,61959.0,61958.0,0.0012424]
[1727855399090,0.46708493,61959.0,61954.0,0.00123567]
[1727855399330,0.27821209,61955.0,61954.0,0.00123567]
[1727855399552,0.44290654,61955.0,61954.0,0.00123567]
[1727855400427,0.44290654,61955.0,61954.0,0.00223567]
[1727855400869,0.45690654,61955.0,61954.0,0.00123567]
[1727855401111,0.46990654,61955.0,61954.0,0.00223567]
[1727855402019,0.47190654,61955.0,61954.0,0.00223567]
[1727855402246,0.13113,61953.0,61952.0,0.03065399]
[1727855402465,0.29582445,61953.0,61952.0,0.03065399]
[1727855403157,0.32112949,61953.0,61952.0,0.03065399]
[1727855403375,0.33312949,61953.0,61952.0,0.03165399]
[1727855403653,0.129134,61951.0,61950.0,1.3625]
[1727855403877,0.54491554,61951.0,61950.0,1.290625]
[1727855404353,0.54291554,61951.0,61950.0,1.02157235]
[1727855404606,0.69457479,61951.0,61950.0,1.02157235]
[1727855405088,0.54291554,61951.0,61950.0,1.02157235]
[1727855405309,0.39382845,61951.0,61950.0,1.02157235]
[1727855405735,0.39382845,61951.0,61950.0,1.01259369]
[1727855405952,0.39382845,61951.0,61950.0,0.96216177]
[1727855405953,0.50582845,61951.0,61950.0,0.96216177]
[1727855406178,0.58272845,61951.0,61950.0,0.91236237]
[1727855406396,0.7333877,61951.0,61950.0,0.91236237]
[1727855407046,0.77269631,61951.0,61950.0,0.91236237]
[1727855407269,0.77269631,61951.0,61950.0,0.60733116]
[1727855407508,0.75869631,61951.0,61950.0,0.60733116]
[1727855407720,0.7333877,61951.0,61950.0,0.60733116]
[1727855407936,0.327142,61947.0,61940.0,0.04510204]
[1727855408152,0.88270536,61947.0,61940.0,0.04510204]
[1727855408600,0.88770536,61947.0,61940.0,0.04510204]
[1727855408825,0.93502091,61947.0,61940.0,0.04510204]
[1727855409058,0.88770536,61947.0,61940.0,0.04510204]
[1727855409752,0.90170536,61947.0,61940.0,0.04510204]
[1727855410192,0.92701611,61947.0,61940.0,0.04510204]
[1727855410671,0.002,61941.0,61940.0,0.04510204]
[1727855410922,0.54493654,61941.0,61940.0,0.04510204]
[1727855411806,0.54493654,61941.0,61928.0,0.0493321]
[1727855411807,0.38026709,61929.0,61928.0,0.0493321]
[1727855412024,0.22918,61929.0,61928.0,0.0493321]
[1727855412946,0.12918,61929.0,61928.0,0.0493321]
[1727855413164,0.12918,61929.0,61928.0,0.2174321]
[1727855413598,0.14318,61929.0,61928.0,0.2174321]
[1727855413824,0.12918,61929.0,61928.0,0.2174321]
[1727855414055,0.13918,61929.0,61928.0,0.2174321]
[1727855414626,0.14318,61929.0,61928.0,0.2174321]
[1727855414884,0.17876502,61929.0,61928.0,0.2174321]
[1727855415125,0.16476502,61929.0,61928.0,0.2174321]
[1727855415394,0.16476502,61929.0,61928.0,0.1253321]
[1727855415395,0.13718,61929.0,61928.0,0.1253321]
[1727855416094,0.12918,61929.0,61928.0,0.1253321]
[1727855416355,0.30587445,61929.0,61928.0,0.1253321]
[1727855416597,0.29987445,61929.0,61928.0,0.1253321]
[1727855416843,0.30787445,61929.0,61928.0,0.1253321]
[1727855417103,0.32187445,61929.0,61928.0,0.1253321]
[1727855417609,0.12918,61929.0,61928.0,0.1253321]
[1727855417878,0.14218,61929.0,61928.0,0.2170321]
[1727855418138,0.15618,61929.0,61928.0,0.2170321]
[1727855419262,0.12918,61929.0,61928.0,0.2170321]
[1727855419714,0.14018,61929.0,61928.0,0.2170321]
[1727855419946,0.15207714,61929.0,61928.0,0.2170321]
[1727855423906,0.24732055,61929.0,61928.0,0.1253321]
[1727855424379,0.15207714,61929.0,61928.0,0.1253321]
[1727855424614,0.15207714,61929.0,61928.0,0.1261531]
[1727855425720,0.12907714,61929.0,61928.0,0.0501531]
[1727855425932,0.15607714,61929.0,61928.0,0.0501531]
[1727855427529,0.32077159,61929.0,61928.0,0.0501531]
[1727855432500,0.39302008,61929.0,61928.0,0.0501531]
[1727855432947,0.32077159,61929.0,61928.0,0.0501531]
[1727855433645,0.61891406,61929.0,61928.0,0.0501531]
[1727855434634,0.64299689,61929.0,61928.0,0.0501531]
[1727855435152,0.64299689,61929.0,61928.0,0.2176531]
[1727855435384,0.15607714,61929.0,61928.0,0.2176531]
[1727855435606,0.4549552,61929.0,61928.0,0.2176531]
[1727855436719,0.35827296,61929.0,61928.0,0.2176531]
[1727855436933,0.47908739,61929.0,61928.0,0.2176531]
[1727855437144,0.50440008,61929.0,61928.0,0.2176531]
[1727855437357,0.38349047,61929.0,61928.0,0.1259531]
[1727855437571,0.35817778,61929.0,61928.0,0.1259531]
[1727855437845,0.47908739,61929.0,61928.0,0.1259531]
[1727855440080,0.47908739,61929.0,61928.0,0.14058894]
[1727855441425,0.35817778,61929.0,61928.0,0.14058894]
[1727855441694,0.50469048,61929.0,61928.0,0.14058894]
[1727855442581,0.38372956,61929.0,61928.0,0.14058894]
[1727855444570,0.37568008,61929.0,61928.0,0.14058894]